fUSD/lending_fUSD_20260530
["ID","MTS","AMOUNT","RATE_DAILY","PERIOD"]
[423419643,1780099841000,-500.0,9.493e-05,2]
[423419646,1780099841000,-500.0,9.493e-05,2]
[423419641,1780099841000,-335.88,9.473e-05,2]
[423419642,1780099841000,-160.0,9.489e-05,2]
[423419647,1780099841000,-500.0,9.493e-05,2]
[423419637,1780099841000,-2442.17290302,9.363e-05,2]
[423419640,1780099841000,-2000.0,9.396e-05,2]
[423419652,1780099841000,-166.46,9.528e-05,2]
[423419651,1780099841000,-368.11823642,9.493e-05,2]
[423419649,1780099841000,-500.0,9.493e-05,2]
[423419635,1780099841000,-166.46,9.295e-05,2]
[423419648,1780099841000,-500.0,9.493e-05,2]
[423419653,1780099841000,-166.66,9.574e-05,2]
[423419658,1780099841000,-841.3188791,9.726e-05,2]
[423419656,1780099841000,-1401.26984982,9.67e-05,2]
[423419657,1780099841000,-2809.78310969,9.726e-05,2]
[423419654,1780099841000,-500.0,9.589e-05,2]
[423419655,1780099841000,-46271.29158447,9.67e-05,2]
[423419660,1780099841000,-3099.0949836,9.726e-05,2]
[423419664,1780099841000,-928.0,9.767e-05,2]
[423419650,1780099841000,-500.0,9.493e-05,2]
[423419639,1780099841000,-884.41675966,9.37e-05,2]
[423419632,1780099841000,-162.7,9.088e-05,2]
[423419636,1780099841000,-500.0,9.315e-05,2]
[423419662,1780099841000,-1356.0,9.767e-05,2]
[423419613,1780099841000,-768.65,8.328e-05,2]
[423419614,1780099841000,-2000.0,8.352e-05,2]
[423419611,1780099841000,-500.0,8.219e-05,2]
[423419612,1780099841000,-500.0,8.219e-05,2]
[423419616,1780099841000,-17920.53,8.47e-05,2]
[423419620,1780099841000,-500.0,8.767e-05,2]
[423419615,1780099841000,-162.7,8.389e-05,2]
[423419617,1780099841000,-500.0,8.493e-05,2]
[423419619,1780099841000,-1264.12,8.72e-05,2]
[423419618,1780099841000,-500.0,8.711e-05,2]
[423419621,1780099841000,-166.46,8.831e-05,2]
[423419624,1780099841000,-71633.6343526,8.939e-05,2]
[423419626,1780099841000,-166.66,8.981e-05,2]
[423419625,1780099841000,-465.2465714,8.962e-05,2]
[423419623,1780099841000,-75539.9446003,8.929e-05,2]
[423419622,1780099841000,-131070.7828878,8.929e-05,2]
[423419627,1780099841000,-587.0,8.989e-05,2]
[423419628,1780099841000,-2351.0,8.989e-05,2]
[423419629,1780099841000,-500.0,9.01e-05,2]
[423419633,1780099841000,-228.33971078,9.1e-05,2]
[423419630,1780099841000,-500.0,9.041e-05,2]
[423419631,1780099841000,-166.46,9.063e-05,2]
[423419638,1780099841000,-2004.83893545,9.363e-05,2]
[423419659,1780099841000,-4499.25139724,9.726e-05,2]
[423419634,1780099841000,-166.66,9.278e-05,2]
[423419663,1780099841000,-3549.0,9.767e-05,2]
[423419691,1780099841000,-377.98146809,0.0001,2]
[423419692,1780099841000,-308.28320837,0.0001,2]
[423419695,1780099841000,-1596.65811491,0.00010065,2]
[423419697,1780099841000,-195.20571002,0.00010065,2]
[423419693,1780099841000,-4000.0,0.00010027,2]
[423419698,1780099841000,-350.0,0.00010093,2]
[423419694,1780099841000,-642.19606749,0.00010063,2]
[423419696,1780099841000,-3047.70441652,0.00010065,2]
[423419699,1780099841000,-500.0,0.00010137,2]
[423419700,1780099841000,-2000.0,0.00010137,2]
[423419704,1780099841000,-104602.3527337,0.00010163,2]
[423419701,1780099841000,-242.18,0.00010137,2]
[423419702,1780099841000,-9418.6993751,0.0001016,2]
[423419703,1780099841000,-151.0,0.0001016,2]
[423419706,1780099841000,-63304.1980028,0.00010163,2]
[423419705,1780099841000,-309150.6683746,0.00010163,2]
[423419708,1780099841000,-1175.497728,0.00010163,2]
[423419710,1780099841000,-1175.497728,0.00010163,2]
[423419711,1780099841000,-151.0,0.00010163,2]
[423419707,1780099841000,-1175.497728,0.00010163,2]
[423419709,1780099841000,-1175.497728,0.00010163,2]
[423419712,1780099841000,-151.0,0.00010163,2]
[423419713,1780099841000,-151.0,0.00010163,2]
[423419688,1780099841000,-195.17632511,0.0001,2]
[423419715,1780099841000,-2414.12559202,0.00010165,2]
[423419714,1780099841000,-408559.69710872,0.00010165,2]
[423419690,1780099841000,-377.98146809,0.0001,2]
[423419689,1780099841000,-377.98146809,0.0001,2]
[423419665,1780099841000,-587.0,9.767e-05,2]
[423419666,1780099841000,-1272.0,9.767e-05,2]
[423419669,1780099841000,-932.0,9.767e-05,2]
[423419671,1780099841000,-1264.12,9.81e-05,2]
[423419670,1780099841000,-162.7,9.787e-05,2]
[423419667,1780099841000,-1225.0,9.767e-05,2]
[423419668,1780099841000,-6066.0,9.767e-05,2]
[423419672,1780099841000,-250.0,9.816e-05,2]
[423419677,1780099841000,-250.0,9.95e-05,2]
[423419678,1780099841000,-247.523,9.95e-05,2]
[423419673,1780099841000,-500.0,9.863e-05,2]
[423419661,1780099841000,-166.46,9.76e-05,2]
[423419674,1780099841000,-166.66,9.871e-05,2]
[423419675,1780099841000,-3292.0,9.888e-05,2]
[423419687,1780099841000,-1736.96,0.0001,2]
[423419685,1780099841000,-968.7,0.0001,2]
[423419684,1780099841000,-2000.0,0.0001,2]
[423419682,1780099841000,-2000.0,0.0001,2]
[423419686,1780099841000,-2000.0,0.0001,2]
[423419683,1780099841000,-2000.0,0.0001,2]
[423419680,1780099841000,-151.0,9.95e-05,2]
[423419679,1780099841000,-245.485,9.95e-05,2]
[423419676,1780099841000,-823.0,9.888e-05,2]
[423419681,1780099841000,-2000.0,0.0001,2]
[423419728,1780099843000,-635.37325123,0.00010165,2]
[423419730,1780099843000,-722.8955016,0.00010165,2]
[423419729,1780099843000,-0.00032924,0.00010165,2]
[423419732,1780099846000,-418.0,9.767e-05,2]
[423419733,1780099846000,-3075.81317504,0.00010165,2]
[423419828,1780099931000,500.0,0.00039385,120]
[423419829,1780100010000,-439.3271,7.33e-05,2]
[423419830,1780100014000,500.0,0.00039385,120]
[423419831,1780100018000,330.0,0.00010164,3]
[423419832,1780100064000,-160.0,7.438e-05,2]
[423419833,1780100065000,3967.833455,0.00039385,120]
[423419834,1780100116000,-209.09056759,7.446e-05,2]
[423419835,1780100119000,160.0,0.00028,120]
[423419836,1780100129000,2644.375996,0.00039385,120]
[423419837,1780100130000,330.0,0.00010164,3]
[423419838,1780100172000,-1920.365091,8.178e-05,2]
[423419839,1780100173000,160.0,0.00028,120]
[423419842,1780100174000,160.0,0.00028,120]
[423419841,1780100174000,160.0,0.00028,120]
[423419840,1780100174000,160.0,0.00028,120]
[423419843,1780100184000,160.0,0.00028,120]
[423419844,1780100189000,160.0,0.00028,120]
[423419845,1780100197000,160.0,0.00028,120]
[423419846,1780100225000,-160.0,8.178e-05,2]
[423419848,1780100227000,160.0,0.00028,120]
[423419847,1780100227000,160.0,0.00028,120]
[423419849,1780100237000,500.0,0.0003937,120]
[423419850,1780100278000,-215.5484138,8.186e-05,2]
[423419852,1780100280000,1000.48626854,0.0003937,120]
[423419851,1780100280000,415.35410322,0.0003937,120]
[423419853,1780100282000,500.0,0.0003937,120]
[423419854,1780100298000,160.0,0.00028,120]
[423419855,1780100299000,160.0,0.00028,120]
[423419856,1780100300000,160.0,0.00028,120]
[423419857,1780100302000,160.0,0.00028,120]
[423419858,1780100306000,160.0,0.00028,120]
[423419859,1780100332000,-445.5295,8.078e-05,2]
[423419860,1780100335000,165.0,0.00028,120]
[423419861,1780100335000,165.0,0.00028,120]
[423419862,1780100336000,1000.0,0.0003937,120]
[423419863,1780100340000,165.0,0.00028,120]
[423419864,1780100348000,1000.0,0.0003937,120]
[423419866,1780100385000,-250.0,8.198e-05,2]
[423419867,1780100388000,465.0,0.0003937,120]
[423419868,1780100397000,163.91,6.776e-05,2]
[423419869,1780100438000,-174.46201991,8.217e-05,2]
[423419870,1780100492000,-1200.0,8.218e-05,2]
[423419871,1780100495000,1197.38478695,8.924e-05,3]
[423419872,1780100501000,330.0,0.00010164,3]
[423419873,1780100532000,500.0,0.0003937,120]
[423419874,1780100542000,10175.93321795,0.0003937,120]
[423419875,1780100831000,500.0,0.0003951,120]
[423419876,1780100885000,-161.44,7.421e-05,2]
[423419878,1780100908000,-500.0,7.502e-05,2]
[423419879,1780100910000,330.0,0.00010164,3]
[423419880,1780100940000,-161.44,7.519e-05,2]
[423419881,1780100964000,-161.44,7.616e-05,2]
[423419884,1780101015000,-161.44,7.714e-05,2]
[423419885,1780101018000,-161.44,7.812e-05,2]
[423420050,1780101047000,-500.0,7.846e-05,2]
[423420063,1780101071000,-3434.73,8.374e-05,2]
[423420065,1780101071000,-35156.34829025,8.375e-05,2]
[423420061,1780101071000,-160.0,8.307e-05,2]
[423420062,1780101071000,-209.09056759,8.315e-05,2]
[423420060,1780101071000,-215.5484138,8.3e-05,2]
[423420064,1780101071000,-287.293,8.374e-05,2]
[423420059,1780101071000,-2000.0,8.219e-05,2]
[423420056,1780101071000,-841.52,8.168e-05,2]
[423420066,1780101071000,-250.0,8.378e-05,2]
[423420055,1780101071000,-161.44,8.105e-05,2]
[423420069,1780101071000,-357.49907163,8.485e-05,2]
[423420053,1780101071000,-55.87999979,8.007e-05,2]
[423420054,1780101071000,-1000.0,8.103e-05,2]
[423420051,1780101071000,-161.44,7.909e-05,2]
[423420052,1780101071000,-105.56000021,8.007e-05,2]
[423420058,1780101071000,-2323.65,8.219e-05,2]
[423420067,1780101071000,-17920.53,8.423e-05,2]
[423420057,1780101071000,-161.44,8.202e-05,2]
[423420075,1780101071000,-41928.78667756,8.915e-05,2]
[423420086,1780101071000,-438.13598479,8.925e-05,2]
[423420068,1780101071000,-162.72,8.478e-05,2]
[423420085,1780101071000,-1254.41808677,8.925e-05,2]
[423420081,1780101071000,-3158.5086741,8.92e-05,2]
[423420082,1780101071000,-500.0,8.925e-05,2]
[423420083,1780101071000,-544.64247043,8.925e-05,2]
[423420080,1780101071000,-348.9349285,8.916e-05,2]
[423420078,1780101071000,-81707.17118901,8.916e-05,2]
[423420084,1780101071000,-17645.86759185,8.925e-05,2]
[423420079,1780101071000,-16595.91597689,8.916e-05,2]
[423420077,1780101071000,-53725.2257644,8.916e-05,2]
[423420072,1780101071000,-4366.0061,8.825e-05,2]
[423420073,1780101071000,-2500.0,8.825e-05,2]
[423420070,1780101071000,-166.67,8.653e-05,2]
[423420071,1780101071000,-4104.8281,8.725e-05,2]
[423420074,1780101071000,-14726.17177264,8.915e-05,2]
[423420076,1780101071000,-162.4478779,8.916e-05,2]
[423420129,1780101073000,-150.0,9.723e-05,2]
[423420122,1780101073000,-150.0,9.616e-05,2]
[423420125,1780101073000,-150.0,9.656e-05,2]
[423420130,1780101073000,-150.0,9.735e-05,2]
[423420123,1780101073000,-150.0,9.616e-05,2]
[423420121,1780101073000,-152.46068316,9.616e-05,2]
[423420113,1780101073000,-269.46308184,9.508e-05,2]
[423420120,1780101073000,-150.0,9.616e-05,2]
[423420119,1780101073000,-153.65997092,9.616e-05,2]
[423420118,1780101073000,-150.0,9.616e-05,2]
[423420126,1780101073000,-27449.64,9.67e-05,2]
[423420124,1780101073000,-150.0,9.616e-05,2]
[423420127,1780101073000,-21381.5,9.67e-05,2]
[423420143,1780101073000,-150.0,9.933e-05,2]
[423420132,1780101073000,-6066.0,9.751e-05,2]
[423420131,1780101073000,-150.0,9.75e-05,2]
[423420139,1780101073000,-478.11622604,9.841e-05,2]
[423420140,1780101073000,-150.0,9.854e-05,2]
[423420142,1780101073000,-150.0,9.893e-05,2]
[423420141,1780101073000,-150.0,9.884e-05,2]
[423420135,1780101073000,-150.0,9.814e-05,2]
[423420134,1780101073000,-150.0,9.795e-05,2]
[423420136,1780101073000,-150.0,9.83e-05,2]
[423420138,1780101073000,-150.0,9.83e-05,2]
[423420133,1780101073000,-150.0,9.775e-05,2]
[423420114,1780101073000,-151.0,9.589e-05,2]
[423420128,1780101073000,-150.0,9.696e-05,2]
[423420112,1780101073000,-151.0,9.493e-05,2]
[423420090,1780101073000,-493.44068259,8.925e-05,2]
[423420115,1780101073000,-166.67,9.606e-05,2]
[423420137,1780101073000,-150.0,9.83e-05,2]
[423420087,1780101073000,-386.025,8.925e-05,2]
[423420088,1780101073000,-2788.35926918,8.925e-05,2]
[423420092,1780101073000,-855.50184514,8.925e-05,2]
[423420089,1780101073000,-1268.32836985,8.925e-05,2]
[423420091,1780101073000,-384.8741902,8.925e-05,2]
[423420093,1780101073000,-719721.9784667,8.925e-05,2]
[423420102,1780101073000,-273.0,9.151e-05,2]
[423420096,1780101073000,-151.0,8.932e-05,2]
[423420094,1780101073000,-22197.9068962,8.926e-05,2]
[423420098,1780101073000,-1691.0172044,8.941e-05,2]
[423420097,1780101073000,-373618.963834,8.935e-05,2]
[423420111,1780101073000,-151.0,9.493e-05,2]
[423420105,1780101073000,-2000.0,9.247e-05,2]
[423420095,1780101073000,-7262.9813357,8.931e-05,2]
[423420100,1780101073000,-500.0,9.056e-05,2]
[423420101,1780101073000,-166.67,9.129e-05,2]
[423420103,1780101073000,-841.52,9.189e-05,2]
[423420104,1780101073000,-500.0,9.233e-05,2]
[423420107,1780101073000,-3099.0949836,9.493e-05,2]
[423420108,1780101073000,-2809.78310969,9.493e-05,2]
[423420106,1780101073000,-4499.25139724,9.493e-05,2]
[423420109,1780101073000,-841.3188791,9.493e-05,2]
[423420117,1780101073000,-150.0,9.616e-05,2]
[423420110,1780101073000,-151.0,9.493e-05,2]
[423420116,1780101073000,-150.0,9.616e-05,2]
[423420099,1780101073000,-14738.14515273,9.04e-05,2]
[423420156,1780101073000,-1080.13179969,9.961e-05,2]
[423420203,1780101073000,-156.604429,0.00010065,2]
[423420145,1780101073000,-1103.85253367,9.961e-05,2]
[423420179,1780101073000,-377.98146809,0.0001,2]
[423420175,1780101073000,-968.7,0.0001,2]
[423420180,1780101073000,-377.98146809,0.0001,2]
[423420178,1780101073000,-377.98146809,0.0001,2]
[423420176,1780101073000,-2000.0,0.0001,2]
[423420177,1780101073000,-1736.96,0.0001,2]
[423420187,1780101073000,-500.0,0.00010021,2]
[423420186,1780101073000,-150.0,0.00010017,2]
[423420183,1780101073000,-642.19606749,0.0001,2]
[423420185,1780101073000,-150.0,0.00010012,2]
[423420194,1780101073000,-150.0,0.00010044,2]
[423420189,1780101073000,-587.0,0.0001004,2]
[423420174,1780101073000,-2000.0,0.0001,2]
[423420188,1780101073000,-4000.0,0.00010027,2]
[423420196,1780101073000,-150.0,0.00010064,2]
[423420184,1780101073000,-308.28320837,0.0001,2]
[423420191,1780101073000,-1225.0,0.0001004,2]
[423420195,1780101073000,-150.0,0.00010052,2]
[423420193,1780101073000,-150.0,0.00010044,2]
[423420192,1780101073000,-150.0,0.00010044,2]
[423420198,1780101073000,-21351.4671,0.00010065,2]
[423420197,1780101073000,-400.0,0.00010065,2]
[423420199,1780101073000,-2000.0,0.00010065,2]
[423420200,1780101073000,-5000.0,0.00010065,2]
[423420201,1780101073000,-1500000.0,0.00010065,2]
[423420202,1780101073000,-290.3445,0.00010065,2]
[423420155,1780101073000,-1033.84291123,9.961e-05,2]
[423420170,1780101073000,-150.0,9.973e-05,2]
[423420190,1780101073000,-1272.0,0.0001004,2]
[423420172,1780101073000,-2000.0,0.0001,2]
[423420173,1780101073000,-2000.0,0.0001,2]
[423420144,1780101073000,-150.0,9.937e-05,2]
[423420147,1780101073000,-1080.52718849,9.961e-05,2]
[423420146,1780101073000,-1029.84931348,9.961e-05,2]
[423420148,1780101073000,-1142.65074843,9.961e-05,2]
[423420149,1780101073000,-1115.09006762,9.961e-05,2]
[423420154,1780101073000,-1001.2426071,9.961e-05,2]
[423420150,1780101073000,-1080.05794745,9.961e-05,2]
[423420153,1780101073000,-1039.29846994,9.961e-05,2]
[423420151,1780101073000,-1089.23212894,9.961e-05,2]
[423420157,1780101073000,-1064.58644929,9.961e-05,2]
[423420159,1780101073000,-1113.1958266,9.961e-05,2]
[423420161,1780101073000,-1085.77267121,9.961e-05,2]
[423420152,1780101073000,-1083.76725574,9.961e-05,2]
[423420164,1780101073000,-1033.17620625,9.961e-05,2]
[423420182,1780101073000,-1638.22540425,0.0001,2]
[423420163,1780101073000,-1008.22249076,9.961e-05,2]
[423420181,1780101073000,-46271.29158447,0.0001,2]
[423420171,1780101073000,-2000.0,0.0001,2]
[423420167,1780101073000,-1112.13563051,9.961e-05,2]
[423420169,1780101073000,-150.0,9.973e-05,2]
[423420165,1780101073000,-1118.89274579,9.961e-05,2]
[423420162,1780101073000,-1101.4585768,9.961e-05,2]
[423420166,1780101073000,-1148.89125421,9.961e-05,2]
[423420168,1780101073000,-1036.54739029,9.961e-05,2]
[423420158,1780101073000,-1106.53889355,9.961e-05,2]
[423420160,1780101073000,-1082.22542517,9.961e-05,2]
[423420230,1780101074000,-500.0,0.00010065,2]
[423420211,1780101074000,-500.0,0.00010065,2]
[423420225,1780101074000,-500.0,0.00010065,2]
[423420235,1780101074000,-500.0,0.00010065,2]
[423420222,1780101074000,-500.0,0.00010065,2]
[423420227,1780101074000,-500.0,0.00010065,2]
[423420224,1780101074000,-500.0,0.00010065,2]
[423420231,1780101074000,-500.0,0.00010065,2]
[423420233,1780101074000,-500.0,0.00010065,2]
[423420223,1780101074000,-500.0,0.00010065,2]
[423420234,1780101074000,-500.0,0.00010065,2]
[423420228,1780101074000,-500.0,0.00010065,2]
[423420215,1780101074000,-500.0,0.00010065,2]
[423420226,1780101074000,-500.0,0.00010065,2]
[423420214,1780101074000,-500.0,0.00010065,2]
[423420208,1780101074000,-1175.497728,0.00010065,2]
[423420210,1780101074000,-1175.497728,0.00010065,2]
[423420212,1780101074000,-500.0,0.00010065,2]
[423420217,1780101074000,-500.0,0.00010065,2]
[423420213,1780101074000,-500.0,0.00010065,2]
[423420216,1780101074000,-500.0,0.00010065,2]
[423420221,1780101074000,-500.0,0.00010065,2]
[423420219,1780101074000,-500.0,0.00010065,2]
[423420218,1780101074000,-500.0,0.00010065,2]
[423420204,1780101074000,-156.604429,0.00010065,2]
[423420207,1780101074000,-1175.497728,0.00010065,2]
[423420205,1780101074000,-156.604429,0.00010065,2]
[423420206,1780101074000,-156.604429,0.00010065,2]
[423420209,1780101074000,-1175.497728,0.00010065,2]
[423420229,1780101074000,-500.0,0.00010065,2]
[423420220,1780101074000,-500.0,0.00010065,2]
[423420239,1780101074000,-500.0,0.00010065,2]
[423420232,1780101074000,-500.0,0.00010065,2]
[423420244,1780101074000,-500.0,0.00010065,2]
[423420237,1780101074000,-500.0,0.00010065,2]
[423420267,1780101074000,-151.0,0.00010065,2]
[423420268,1780101074000,-151.0,0.00010065,2]
[423420264,1780101074000,-500.0,0.00010065,2]
[423420266,1780101074000,-500.0,0.00010065,2]
[423420265,1780101074000,-500.0,0.00010065,2]
[423420257,1780101074000,-500.0,0.00010065,2]
[423420262,1780101074000,-500.0,0.00010065,2]
[423420258,1780101074000,-500.0,0.00010065,2]
[423420261,1780101074000,-500.0,0.00010065,2]
[423420260,1780101074000,-500.0,0.00010065,2]
[423420259,1780101074000,-500.0,0.00010065,2]
[423420256,1780101074000,-500.0,0.00010065,2]
[423420255,1780101074000,-500.0,0.00010065,2]
[423420254,1780101074000,-500.0,0.00010065,2]
[423420263,1780101074000,-500.0,0.00010065,2]
[423420253,1780101074000,-500.0,0.00010065,2]
[423420252,1780101074000,-500.0,0.00010065,2]
[423420236,1780101074000,-500.0,0.00010065,2]
[423420242,1780101074000,-500.0,0.00010065,2]
[423420241,1780101074000,-500.0,0.00010065,2]
[423420240,1780101074000,-500.0,0.00010065,2]
[423420238,1780101074000,-500.0,0.00010065,2]
[423420243,1780101074000,-500.0,0.00010065,2]
[423420245,1780101074000,-500.0,0.00010065,2]
[423420251,1780101074000,-500.0,0.00010065,2]
[423420247,1780101074000,-500.0,0.00010065,2]
[423420248,1780101074000,-500.0,0.00010065,2]
[423420269,1780101074000,-200.162005,0.00010065,2]
[423420246,1780101074000,-500.0,0.00010065,2]
[423420250,1780101074000,-500.0,0.00010065,2]
[423420249,1780101074000,-500.0,0.00010065,2]
[423420312,1780101075000,-150.0,0.0001017,2]
[423420306,1780101075000,-150.0,0.00010165,2]
[423420303,1780101075000,-1175.497728,0.00010165,2]
[423420307,1780101075000,-151.0,0.00010165,2]
[423420305,1780101075000,-1175.497728,0.00010165,2]
[423420302,1780101075000,-1175.497728,0.00010165,2]
[423420304,1780101075000,-1175.497728,0.00010165,2]
[423420298,1780101075000,-1175.497728,0.00010165,2]
[423420301,1780101075000,-1175.497728,0.00010165,2]
[423420322,1780101075000,-360.17177065,0.00010277,2]
[423420310,1780101075000,-151.0,0.00010165,2]
[423420308,1780101075000,-151.0,0.00010165,2]
[423420311,1780101075000,-166.66,0.00010167,2]
[423420321,1780101075000,-2000.0,0.00010274,2]
[423420314,1780101075000,-841.52,0.0001021,2]
[423420316,1780101075000,-83329.44061704,0.00010211,2]
[423420320,1780101075000,-150.0,0.00010258,2]
[423420315,1780101075000,-150.0,0.0001021,2]
[423420318,1780101075000,-150.0,0.00010258,2]
[423420317,1780101075000,-150.0,0.0001025,2]
[423420323,1780101075000,-4000.0,0.00010278,2]
[423420325,1780101075000,-150.0,0.00010289,2]
[423420334,1780101075000,-350.0,0.00010363,2]
[423420326,1780101075000,-31093.19641985,0.0001029,2]
[423420327,1780101075000,-11556.71137123,0.0001029,2]
[423420300,1780101075000,-1175.497728,0.00010165,2]
[423420313,1780101075000,-250.0,0.00010193,2]
[423420309,1780101075000,-151.0,0.00010165,2]
[423420277,1780101075000,-150.0,0.00010151,2]
[423420294,1780101075000,-156.604429,0.00010165,2]
[423420272,1780101075000,-150.0,0.00010091,2]
[423420271,1780101075000,-642.19606747,0.00010085,2]
[423420270,1780101075000,-166.67,0.00010082,2]
[423420273,1780101075000,-262.86003916,0.000101,2]
[423420274,1780101075000,-150.0,0.00010131,2]
[423420275,1780101075000,-150.0,0.00010151,2]
[423420279,1780101075000,-308.28320837,0.00010155,2]
[423420276,1780101075000,-150.0,0.00010151,2]
[423420281,1780101075000,-242.18,0.0001016,2]
[423420278,1780101075000,-150.0,0.00010151,2]
[423420284,1780101075000,-1000.0,0.00010163,2]
[423420285,1780101075000,-1586.820872,0.00010165,2]
[423420324,1780101075000,-150.0,0.00010284,2]
[423420283,1780101075000,-170.948439,0.00010162,2]
[423420282,1780101075000,-170.948439,0.00010162,2]
[423420280,1780101075000,-2000.0,0.0001016,2]
[423420286,1780101075000,-757126.13629383,0.00010165,2]
[423420295,1780101075000,-156.604429,0.00010165,2]
[423420289,1780101075000,-151.0,0.00010165,2]
[423420292,1780101075000,-156.604429,0.00010165,2]
[423420291,1780101075000,-156.604429,0.00010165,2]
[423420287,1780101075000,-234.21159013,0.00010165,2]
[423420297,1780101075000,-156.604429,0.00010165,2]
[423420296,1780101075000,-156.604429,0.00010165,2]
[423420290,1780101075000,-156.604429,0.00010165,2]
[423420288,1780101075000,-151.0,0.00010165,2]
[423420293,1780101075000,-156.604429,0.00010165,2]
[423420299,1780101075000,-1175.497728,0.00010165,2]
[423420329,1780101075000,-114766.8630248,0.000103,2]
[423420319,1780101075000,-150.0,0.00010258,2]
[423420332,1780101075000,-350.0,0.00010335,2]
[423420364,1780101075000,-2871.63,0.00010538,2]
[423420362,1780101075000,-4000.0,0.00010529,2]
[423420370,1780101075000,-350.0,0.0001059,2]
[423420371,1780101075000,-642.19606747,0.000106,2]
[423420369,1780101075000,-163.0,0.0001058,2]
[423420372,1780101075000,-150.0,0.00010606,2]
[423420366,1780101075000,-150.0,0.00010566,2]
[423420363,1780101075000,-1877.07,0.00010538,2]
[423420368,1780101075000,-150.0,0.00010578,2]
[423420367,1780101075000,-500.0,0.00010569,2]
[423420373,1780101075000,-150.0,0.00010645,2]
[423420382,1780101075000,-308.28320837,0.0001069,2]
[423420375,1780101075000,-157.02579068,0.00010685,2]
[423420361,1780101075000,-150.0,0.00010527,2]
[423420376,1780101075000,-154.07871726,0.00010685,2]
[423420374,1780101075000,-400.0,0.00010647,2]
[423420384,1780101075000,-946843.73851676,0.000107,2]
[423420378,1780101075000,-195.92693402,0.00010685,2]
[423420385,1780101075000,-646594.63636472,0.000107,2]
[423420381,1780101075000,-217.23219505,0.00010685,2]
[423420379,1780101075000,-276.9758734,0.00010685,2]
[423420377,1780101075000,-150.24304196,0.00010685,2]
[423420383,1780101075000,-170.948439,0.00010697,2]
[423420387,1780101075000,-602894.83292152,0.000107,2]
[423420386,1780101075000,-271.51766477,0.000107,2]
[423420388,1780101075000,-151.0,0.000107,2]
[423420328,1780101075000,-500.0,0.00010295,2]
[423420390,1780101075000,-151.0,0.000107,2]
[423420380,1780101075000,-227.52200584,0.00010685,2]
[423420360,1780101075000,-1571.66394522,0.00010518,2]
[423420389,1780101075000,-151.0,0.000107,2]
[423420353,1780101075000,-150.0,0.00010471,2]
[423420365,1780101075000,-150.0,0.00010551,2]
[423420330,1780101075000,-150.0,0.00010329,2]
[423420331,1780101075000,-150.0,0.00010329,2]
[423420344,1780101075000,-1000.0,0.000104,2]
[423420335,1780101075000,-150.0,0.00010364,2]
[423420339,1780101075000,-1010.68398,0.0001037,2]
[423420347,1780101075000,-150.0,0.00010418,2]
[423420338,1780101075000,-1010.68397,0.0001037,2]
[423420346,1780101075000,-150.0,0.00010408,2]
[423420337,1780101075000,-1010.68397,0.0001037,2]
[423420342,1780101075000,-1010.68398,0.0001037,2]
[423420345,1780101075000,-200.0,0.000104,2]
[423420343,1780101075000,-309.0,0.000104,2]
[423420333,1780101075000,-350.0,0.00010346,2]
[423420336,1780101075000,-150.0,0.00010368,2]
[423420341,1780101075000,-1010.68397,0.0001037,2]
[423420354,1780101075000,-150.0,0.00010471,2]
[423420352,1780101075000,-150.0,0.00010471,2]
[423420358,1780101075000,-150.0,0.00010507,2]
[423420357,1780101075000,-150.0,0.00010487,2]
[423420355,1780101075000,-1545.0,0.00010481,2]
[423420356,1780101075000,-162.7,0.00010486,2]
[423420350,1780101075000,-350.0,0.00010463,2]
[423420359,1780101075000,-1545.0,0.00010518,2]
[423420349,1780101075000,-150.0,0.00010447,2]